[Event "Titled Tuesday Blitz February 22 Late 2022"]
[White "Szalay, Karoly"]
[Black "Bacrot, Etienne"]
[WhiteFideId "2600544"]
[BlackFideId "605506"]
[WhiteElo "2465"]
[BlackElo "2673"]
[Result "1-0"]
[Round "01"]
[TimeControl "180+1"]
[Date "2022.02.23"]
[WhiteClock "0:00:20"]
[BlackClock "0:00:11"]

1. e4 {[%clk 0:03:00]}  c5 {[%clk 0:02:59]} 2. Nf3 {[%clk 0:03:00]}  d6 {[%clk 0:02:59]} 3. d4 {[%clk 0:03:01]}  cxd4 {[%clk 0:02:59]} 4. Nxd4 {[%clk 0:03:02]}  Nf6 {[%clk 0:03:00]} 5. Nc3 {[%clk 0:03:02]}  Nc6 {[%clk 0:03:00]} 6. Bg5 {[%clk 0:03:03]}  e6 {[%clk 0:03:00]} 7. f3 {[%clk 0:03:03]}  a6 {[%clk 0:02:59]} 8. Qd2 {[%clk 0:03:04]}  Bd7 {[%clk 0:02:59]} 9. O-O-O {[%clk 0:03:04]}  Be7 {[%clk 0:02:59]} 10. h4 {[%clk 0:03:05]}  Rc8 {[%clk 0:02:58]} 11. g4 {[%clk 0:03:05]}  b5 {[%clk 0:02:56]} 12. Kb1 {[%clk 0:03:06]}  b4 {[%clk 0:02:56]} 13. Nce2 {[%clk 0:03:06]}  Ne5 {[%clk 0:02:50]} 14. Ng3 {[%clk 0:03:06]}  a5 {[%clk 0:02:45]} 15. Bxf6 {[%clk 0:02:51]}  gxf6 {[%clk 0:02:39]} 16. Nh5 {[%clk 0:02:37]}  Qb6 {[%clk 0:02:34]} 17. g5 {[%clk 0:02:23]}  fxg5 {[%clk 0:02:25]} 18. hxg5 {[%clk 0:02:24]}  a4 {[%clk 0:02:24]} 19. f4 {[%clk 0:01:59]}  Nc6 {[%clk 0:02:13]} 20. Nxc6 {[%clk 0:01:51]}  Bxc6 {[%clk 0:02:12]} 21. Bd3 {[%clk 0:01:47]}  a3 {[%clk 0:02:09]} 22. f5 {[%clk 0:01:42]}  exf5 {[%clk 0:02:02]} 23. exf5 {[%clk 0:01:41]}  Qd4 {[%clk 0:02:02]} 24. c3 {[%clk 0:01:32]}  bxc3 {[%clk 0:02:00]} 25. bxc3 {[%clk 0:01:33]}  Qb6+ {[%clk 0:01:43]} 26. Ka1 {[%clk 0:01:33]}  Bxh1 {[%clk 0:01:38]} 27. Rxh1 {[%clk 0:01:21]}  Bxg5 {[%clk 0:01:35]} 28. Qg2 {[%clk 0:00:54]}  Qb2+ {[%clk 0:01:14]} 29. Qxb2 {[%clk 0:00:52]}  axb2+ {[%clk 0:01:15]} 30. Kxb2 {[%clk 0:00:53]}  Rb8+ {[%clk 0:01:09]} 31. Kc2 {[%clk 0:00:53]}  Kd8 {[%clk 0:01:03]} 32. Bc4 {[%clk 0:00:49]}  Rb7 {[%clk 0:00:55]} 33. Bd5 {[%clk 0:00:45]}  Ra7 {[%clk 0:00:54]} 34. Ng3 {[%clk 0:00:39]}  Bf4 {[%clk 0:00:43]} 35. Ne4 {[%clk 0:00:35]}  h5 {[%clk 0:00:42]} 36. Rf1 {[%clk 0:00:25]}  Be5 {[%clk 0:00:37]} 37. Ng5 {[%clk 0:00:25]}  Ke7 {[%clk 0:00:26]} 38. f6+ {[%clk 0:00:23]}  Bxf6 {[%clk 0:00:25]} 39. Nxf7 {[%clk 0:00:22]}  Rc8 {[%clk 0:00:23]} 40. c4 {[%clk 0:00:20]}  Rxa2+ {[%clk 0:00:21]} 41. Kd3 {[%clk 0:00:21]}  h4 {[%clk 0:00:19]} 42. Re1+ {[%clk 0:00:21]}  Kf8 {[%clk 0:00:18]} 43. Nh6 {[%clk 0:00:22]}  h3 {[%clk 0:00:17]} 44. Ng4 {[%clk 0:00:22]}  Bg5 {[%clk 0:00:15]} 45. Rf1+ {[%clk 0:00:22]}  Ke7 {[%clk 0:00:14]} 46. Rf7+ {[%clk 0:00:22]}  Ke8 {[%clk 0:00:14]} 47. Rg7 {[%clk 0:00:22]}  Bf4 {[%clk 0:00:12]} 48. Nf6+ {[%clk 0:00:20]}  Kf8 {[%clk 0:00:11]} 49. Rf7# {[%clk 0:00:20]} 1-0


[Site "https://www.chess.com"]

[Event "Titled Tuesday Blitz February 22 Late 2022"]
[White "Sztokbant, Bernardo Vainzoff"]
[Black "Sevian, Samuel"]
[WhiteFideId "2115956"]
[BlackFideId "2040506"]
[WhiteElo "2264"]
[BlackElo "2698"]
[Result "0-1"]
[Round "01"]
[TimeControl "180+1"]
[Date "2022.02.22"]
[WhiteClock "0:02:37"]
[BlackClock "0:02:41"]

1. e4 {[%clk 0:03:00]}  e5 {[%clk 0:02:59]} 2. Nf3 {[%clk 0:02:57]}  Nc6 {[%clk 0:03:00]} 3. Bc4 {[%clk 0:02:56]}  Nf6 {[%clk 0:03:00]} 4. d3 {[%clk 0:02:56]}  Be7 {[%clk 0:03:00]} 5. c3 {[%clk 0:02:56]}  O-O {[%clk 0:03:00]} 6. O-O {[%clk 0:02:56]}  Kh8 {[%clk 0:03:01]} 7. Bb3 {[%clk 0:02:57]}  Ng8 {[%clk 0:03:00]} 8. Re1 {[%clk 0:02:57]}  d6 {[%clk 0:03:01]} 9. d4 {[%clk 0:02:57]}  Qe8 {[%clk 0:03:00]} 10. h3 {[%clk 0:02:57]}  Bd7 {[%clk 0:02:55]} 11. Nbd2 {[%clk 0:02:56]}  f6 {[%clk 0:02:55]} 12. Nf1 {[%clk 0:02:56]}  g6 {[%clk 0:02:54]} 13. Ng3 {[%clk 0:02:57]}  Nd8 {[%clk 0:02:55]} 14. Be3 {[%clk 0:02:54]}  Ne6 {[%clk 0:02:55]} 15. Qd2 {[%clk 0:02:53]}  Rd8 {[%clk 0:02:54]} 16. Nh2 {[%clk 0:02:52]}  a6 {[%clk 0:02:54]} 17. Rad1 {[%clk 0:02:47]}  Ng7 {[%clk 0:02:54]} 18. Nf3 {[%clk 0:02:47]}  Ba4 {[%clk 0:02:51]} 19. Qc2 {[%clk 0:02:40]}  Bc6 {[%clk 0:02:48]} 20. Qd2 {[%clk 0:02:39]}  f5 {[%clk 0:02:47]} 21. dxe5 {[%clk 0:02:38]}  f4 {[%clk 0:02:42]} 22. Bxf4 {[%clk 0:02:37]}  dxe5 {[%clk 0:02:43]} 23. Nxe5 {[%clk 0:02:37]}  Rxd2 {[%clk 0:02:42]} 24. Rxd2 {[%clk 0:02:37]}  Rxf4 {[%clk 0:02:41]} 0-1


[Site "https://www.chess.com"]

[Event "Titled Tuesday Blitz February 22 Late 2022"]
[White "Terry, Renato"]
[Black "Ozates, Tuna"]
[WhiteFideId "3803457"]
[BlackFideId "6354521"]
[WhiteElo "2577"]
[BlackElo "1872"]
[Result "1-0"]
[Round "01"]
[TimeControl "180+1"]
[Date "2022.02.23"]
[WhiteClock "0:00:39"]
[BlackClock "0:00:05"]

1. e4 {[%clk 0:02:52]}  c5 {[%clk 0:02:56]} 2. Nf3 {[%clk 0:02:52]}  Nc6 {[%clk 0:02:57]} 3. Bb5 {[%clk 0:02:52]}  g6 {[%clk 0:02:57]} 4. Bxc6 {[%clk 0:02:52]}  bxc6 {[%clk 0:02:58]} 5. d4 {[%clk 0:02:52]}  Bg7 {[%clk 0:02:56]} 6. dxc5 {[%clk 0:02:33]}  Ba6 {[%clk 0:02:56]} 7. c3 {[%clk 0:02:29]}  Nf6 {[%clk 0:02:53]} 8. Be3 {[%clk 0:02:26]}  Rb8 {[%clk 0:02:46]} 9. Qc2 {[%clk 0:02:24]}  O-O {[%clk 0:02:43]} 10. Nbd2 {[%clk 0:02:22]}  Ng4 {[%clk 0:02:42]} 11. Bf4 {[%clk 0:02:22]}  e5 {[%clk 0:02:33]} 12. Bg5 {[%clk 0:02:22]}  f6 {[%clk 0:02:29]} 13. Bh4 {[%clk 0:02:22]}  Qa5 {[%clk 0:02:27]} 14. h3 {[%clk 0:02:06]}  Nh6 {[%clk 0:02:24]} 15. b4 {[%clk 0:01:34]}  Qb5 {[%clk 0:02:24]} 16. O-O-O {[%clk 0:01:35]}  f5 {[%clk 0:02:15]} 17. Rhe1 {[%clk 0:01:29]}  fxe4 {[%clk 0:02:12]} 18. Nxe4 {[%clk 0:01:29]}  Nf5 {[%clk 0:02:12]} 19. Bg5 {[%clk 0:01:26]}  h6 {[%clk 0:02:05]} 20. Be3 {[%clk 0:01:25]}  Qc4 {[%clk 0:01:54]} 21. Qb3 {[%clk 0:01:25]}  Rf7 {[%clk 0:01:49]} 22. Qxc4 {[%clk 0:01:23]}  Bxc4 {[%clk 0:01:47]} 23. a3 {[%clk 0:01:23]}  Bd5 {[%clk 0:01:41]} 24. Nfd2 {[%clk 0:01:23]}  Nxe3 {[%clk 0:01:37]} 25. Rxe3 {[%clk 0:01:24]}  h5 {[%clk 0:01:35]} 26. Kc2 {[%clk 0:01:11]}  Bh6 {[%clk 0:01:35]} 27. Re2 {[%clk 0:01:12]}  Rbf8 {[%clk 0:01:31]} 28. f3 {[%clk 0:01:11]}  g5 {[%clk 0:01:28]} 29. Nd6 {[%clk 0:01:06]}  Re7 {[%clk 0:01:25]} 30. c4 {[%clk 0:01:06]}  Bf7 {[%clk 0:01:14]} 31. Nxf7 {[%clk 0:01:06]}  Rfxf7 {[%clk 0:01:14]} 32. Ne4 {[%clk 0:01:07]}  g4 {[%clk 0:01:11]} 33. hxg4 {[%clk 0:01:08]}  hxg4 {[%clk 0:01:12]} 34. fxg4 {[%clk 0:01:08]}  Rf4 {[%clk 0:01:11]} 35. g5 {[%clk 0:01:08]}  Bg7 {[%clk 0:01:11]} 36. b5 {[%clk 0:01:07]}  Rf8 {[%clk 0:01:06]} 37. b6 {[%clk 0:01:06]}  Rb8 {[%clk 0:00:51]} 38. Rb1 {[%clk 0:01:04]}  axb6 {[%clk 0:00:45]} 39. cxb6 {[%clk 0:01:04]}  d5 {[%clk 0:00:45]} 40. Nc5 {[%clk 0:01:05]}  e4 {[%clk 0:00:41]} 41. b7 {[%clk 0:00:59]}  Bd4 {[%clk 0:00:34]} 42. Nb3 {[%clk 0:00:57]}  Bg7 {[%clk 0:00:18]} 43. Na5 {[%clk 0:00:53]}  d4 {[%clk 0:00:18]} 44. Kd2 {[%clk 0:00:50]}  e3+ {[%clk 0:00:11]} 45. Kd3 {[%clk 0:00:49]}  c5 {[%clk 0:00:11]} 46. Reb2 {[%clk 0:00:47]}  Rc7 {[%clk 0:00:07]} 47. Rb6 {[%clk 0:00:47]}  Bf8 {[%clk 0:00:07]} 48. Rg6+ {[%clk 0:00:41]}  Kf7 {[%clk 0:00:07]} 49. Rf6+ {[%clk 0:00:41]}  Kg7 {[%clk 0:00:06]} 50. Rc6 {[%clk 0:00:39]}  Re7 {[%clk 0:00:05]} 51. Rc8 {[%clk 0:00:39]} 1-0


[Site "https://www.chess.com"]

[Event "Titled Tuesday Blitz February 22 Late 2022"]
[White "Timofeev, Artyom"]
[Black "Papp, Petra"]
[WhiteFideId "4140419"]
[BlackFideId "739049"]
[WhiteElo "2583"]
[BlackElo "2259"]
[Result "1-0"]
[Round "01"]
[TimeControl "180+1"]
[Date "2022.02.23"]
[WhiteClock "0:01:19"]
[BlackClock "0:00:02"]

1. d4 {[%clk 0:03:00]}  Nf6 {[%clk 0:02:51]} 2. c4 {[%clk 0:03:00]}  c5 {[%clk 0:02:49]} 3. Nf3 {[%clk 0:02:58]}  cxd4 {[%clk 0:02:48]} 4. Nxd4 {[%clk 0:02:59]}  e5 {[%clk 0:02:48]} 5. Nf3 {[%clk 0:02:58]}  Nc6 {[%clk 0:02:45]} 6. Nc3 {[%clk 0:02:57]}  h6 {[%clk 0:02:39]} 7. g3 {[%clk 0:02:55]}  Bc5 {[%clk 0:02:38]} 8. Bg2 {[%clk 0:02:55]}  O-O {[%clk 0:02:30]} 9. O-O {[%clk 0:02:54]}  d6 {[%clk 0:02:27]} 10. Nd2 {[%clk 0:02:48]}  Bf5 {[%clk 0:02:05]} 11. b3 {[%clk 0:02:44]}  Qd7 {[%clk 0:02:02]} 12. Bb2 {[%clk 0:02:43]}  Bh3 {[%clk 0:02:01]} 13. Nde4 {[%clk 0:02:40]}  Nxe4 {[%clk 0:01:45]} 14. Nxe4 {[%clk 0:02:40]}  Bd4 {[%clk 0:01:34]} 15. Bxd4 {[%clk 0:02:33]}  Bxg2 {[%clk 0:01:27]} 16. Kxg2 {[%clk 0:02:33]}  Nxd4 {[%clk 0:01:27]} 17. Nc3 {[%clk 0:02:32]}  Qg4 {[%clk 0:01:09]} 18. e3 {[%clk 0:02:28]}  Qxd1 {[%clk 0:00:59]} 19. Rfxd1 {[%clk 0:02:28]}  Nf5 {[%clk 0:00:53]} 20. Ne4 {[%clk 0:02:14]}  h5 {[%clk 0:00:35]} 21. Nxd6 {[%clk 0:02:08]}  Nxd6 {[%clk 0:00:33]} 22. Rxd6 {[%clk 0:02:08]}  Rab8 {[%clk 0:00:31]} 23. a4 {[%clk 0:02:07]}  f6 {[%clk 0:00:25]} 24. Rad1 {[%clk 0:02:05]}  Kf7 {[%clk 0:00:24]} 25. Rd7+ {[%clk 0:02:03]}  Kg6 {[%clk 0:00:22]} 26. Rc7 {[%clk 0:02:03]}  Rf7 {[%clk 0:00:22]} 27. Rdd7 {[%clk 0:02:01]}  Rxd7 {[%clk 0:00:22]} 28. Rxd7 {[%clk 0:02:02]}  a6 {[%clk 0:00:20]} 29. b4 {[%clk 0:01:58]}  Kf5 {[%clk 0:00:11]} 30. Rxg7 {[%clk 0:01:56]}  Ke4 {[%clk 0:00:11]} 31. Rd7 {[%clk 0:01:56]}  f5 {[%clk 0:00:05]} 32. c5 {[%clk 0:01:51]}  a5 {[%clk 0:00:03]} 33. b5 {[%clk 0:01:46]}  Rc8 {[%clk 0:00:03]} 34. Rxb7 {[%clk 0:01:46]}  Rxc5 {[%clk 0:00:03]} 35. Ra7 {[%clk 0:01:46]}  f4 {[%clk 0:00:03]} 36. exf4 {[%clk 0:01:45]}  exf4 {[%clk 0:00:03]} 37. Re7+ {[%clk 0:01:41]}  Kd3 {[%clk 0:00:02]} 38. b6 {[%clk 0:01:32]}  Rc4 {[%clk 0:00:03]} 39. b7 {[%clk 0:01:30]}  Rb4 {[%clk 0:00:03]} 40. gxf4 {[%clk 0:01:30]}  Kd4 {[%clk 0:00:01]} 41. f5 {[%clk 0:01:30]}  Kd5 {[%clk 0:00:01]} 42. f6 {[%clk 0:01:30]}  Kd6 {[%clk 0:00:02]} 43. h3 {[%clk 0:01:24]}  h4 {[%clk 0:00:02]} 44. Kf3 {[%clk 0:01:22]}  Rb3+ {[%clk 0:00:02]} 45. Kg4 {[%clk 0:01:22]}  Rb4+ {[%clk 0:00:03]} 46. f4 {[%clk 0:01:22]}  Rb1 {[%clk 0:00:02]} 47. Kxh4 {[%clk 0:01:20]}  Rb6 {[%clk 0:00:02]} 48. Kg5 {[%clk 0:01:19]}  Rb1 {[%clk 0:00:02]} 49. h4 {[%clk 0:01:19]} 1-0


[Site "https://www.chess.com"]

[Event "Titled Tuesday Blitz February 22 Late 2022"]
[White "Tregubov, Pavel V."]
[Black "Schut, Han"]
[WhiteFideId "4115341"]
[BlackFideId "1005561"]
[WhiteElo "2341"]
[BlackElo "2057"]
[Result "1-0"]
[Round "01"]
[TimeControl "180+1"]
[Date "2022.02.23"]
[WhiteClock "0:01:40"]
[BlackClock "0:01:06"]

1. e4 {[%clk 0:03:00]}  c5 {[%clk 0:02:58]} 2. Nf3 {[%clk 0:02:59]}  d6 {[%clk 0:02:52]} 3. Bb5+ {[%clk 0:02:55]}  Bd7 {[%clk 0:02:52]} 4. Bxd7+ {[%clk 0:02:55]}  Qxd7 {[%clk 0:02:53]} 5. O-O {[%clk 0:02:55]}  Nc6 {[%clk 0:02:43]} 6. c3 {[%clk 0:02:52]}  g6 {[%clk 0:02:43]} 7. d4 {[%clk 0:02:52]}  cxd4 {[%clk 0:02:39]} 8. cxd4 {[%clk 0:02:52]}  Bg7 {[%clk 0:02:40]} 9. Nc3 {[%clk 0:02:51]}  Nf6 {[%clk 0:02:19]} 10. h3 {[%clk 0:02:49]}  O-O {[%clk 0:02:18]} 11. e5 {[%clk 0:02:07]}  Ne8 {[%clk 0:02:13]} 12. Bf4 {[%clk 0:01:59]}  Rd8 {[%clk 0:01:58]} 13. Re1 {[%clk 0:01:56]}  dxe5 {[%clk 0:01:52]} 14. dxe5 {[%clk 0:01:49]}  Qf5 {[%clk 0:01:21]} 15. Qc1 {[%clk 0:01:47]}  Nxe5 {[%clk 0:01:15]} 16. Bxe5 {[%clk 0:01:41]}  Bxe5 {[%clk 0:01:06]} 17. Rxe5 {[%clk 0:01:40]} 1-0


[Site "https://www.chess.com"]

[Event "Titled Tuesday Blitz February 22 Late 2022"]
[White "Van Foreest, Jorden"]
[Black "Suder, Jakub"]
[WhiteFideId "1039784"]
[BlackFideId "1195310"]
[WhiteElo "2609"]
[BlackElo "2058"]
[Result "1-0"]
[Round "01"]
[TimeControl "180+1"]
[Date "2022.02.22"]
[WhiteClock "0:01:25"]
[BlackClock "0:00:02"]

1. Nf3 {[%clk 0:02:58]}  e6 {[%clk 0:02:58]} 2. c4 {[%clk 0:02:57]}  d5 {[%clk 0:02:52]} 3. e3 {[%clk 0:02:58]}  Nf6 {[%clk 0:02:52]} 4. b3 {[%clk 0:02:58]}  b6 {[%clk 0:02:52]} 5. Bb2 {[%clk 0:02:58]}  Bb7 {[%clk 0:02:52]} 6. Nc3 {[%clk 0:02:57]}  Be7 {[%clk 0:02:52]} 7. d4 {[%clk 0:02:54]}  Nbd7 {[%clk 0:02:47]} 8. Bd3 {[%clk 0:02:52]}  O-O {[%clk 0:02:45]} 9. O-O {[%clk 0:02:50]}  Ne4 {[%clk 0:02:43]} 10. cxd5 {[%clk 0:02:46]}  exd5 {[%clk 0:02:44]} 11. Rc1 {[%clk 0:02:44]}  a6 {[%clk 0:02:43]} 12. Ne2 {[%clk 0:02:43]}  Re8 {[%clk 0:02:30]} 13. Ng3 {[%clk 0:02:39]}  Bf8 {[%clk 0:02:14]} 14. Qc2 {[%clk 0:02:37]}  Rc8 {[%clk 0:02:10]} 15. Qe2 {[%clk 0:02:38]}  a5 {[%clk 0:01:56]} 16. Rfd1 {[%clk 0:02:36]}  g6 {[%clk 0:01:52]} 17. Bb5 {[%clk 0:02:22]}  c6 {[%clk 0:01:39]} 18. Bd3 {[%clk 0:02:19]}  Bd6 {[%clk 0:01:33]} 19. Bxe4 {[%clk 0:02:16]}  dxe4 {[%clk 0:01:33]} 20. Ne5 {[%clk 0:02:16]}  Nf6 {[%clk 0:01:13]} 21. Qc2 {[%clk 0:02:16]}  Qe7 {[%clk 0:01:03]} 22. Qe2 {[%clk 0:01:48]}  c5 {[%clk 0:01:01]} 23. Nc4 {[%clk 0:01:47]}  Bxg3 {[%clk 0:00:56]} 24. hxg3 {[%clk 0:01:47]}  Ba6 {[%clk 0:00:52]} 25. d5 {[%clk 0:01:45]}  Bxc4 {[%clk 0:00:41]} 26. bxc4 {[%clk 0:01:44]}  Red8 {[%clk 0:00:39]} 27. Ba1 {[%clk 0:01:44]}  Rd6 {[%clk 0:00:39]} 28. Rb1 {[%clk 0:01:45]}  Nd7 {[%clk 0:00:35]} 29. Rb5 {[%clk 0:01:41]}  f6 {[%clk 0:00:35]} 30. Rdb1 {[%clk 0:01:39]}  Kf7 {[%clk 0:00:34]} 31. Bc3 {[%clk 0:01:38]}  h5 {[%clk 0:00:33]} 32. Qc2 {[%clk 0:01:35]}  h4 {[%clk 0:00:04]} 33. gxh4 {[%clk 0:01:34]}  Rh8 {[%clk 0:00:04]} 34. g3 {[%clk 0:01:35]}  g5 {[%clk 0:00:05]} 35. hxg5 {[%clk 0:01:35]}  Qf8 {[%clk 0:00:04]} 36. Kf1 {[%clk 0:01:31]}  Rh1+ {[%clk 0:00:03]} 37. Ke2 {[%clk 0:01:31]}  Qh8 {[%clk 0:00:04]} 38. Qxe4 {[%clk 0:01:30]}  Rxb1 {[%clk 0:00:03]} 39. Rxb1 {[%clk 0:01:31]}  Qh5+ {[%clk 0:00:04]} 40. g4 {[%clk 0:01:30]}  Qh4 {[%clk 0:00:04]} 41. Qf5 {[%clk 0:01:26]}  Qxg5 {[%clk 0:00:02]} 42. Rh1 {[%clk 0:01:24]}  Qxf5 {[%clk 0:00:02]} 43. gxf5 {[%clk 0:01:25]}  Kg7 {[%clk 0:00:02]} 44. a4 {[%clk 0:01:24]}  Kf7 {[%clk 0:00:02]} 45. f4 {[%clk 0:01:25]}  Kg7 {[%clk 0:00:02]} 46. e4 {[%clk 0:01:25]} 1-0


[Site "https://www.chess.com"]

[Event "Titled Tuesday Blitz February 22 Late 2022"]
[White "Vargas Pereda, Jesus Manue"]
[Black "Loay, Sameer"]
[WhiteFideId "5115710"]
[BlackFideId "8104239"]
[WhiteElo "1747"]
[BlackElo "2040"]
[Result "0-1"]
[Round "01"]
[TimeControl "180+1"]
[Date "2022.02.23"]
[WhiteClock "0:01:17"]
[BlackClock "0:01:55"]

1. d4 {[%clk 0:02:58]}  Nf6 {[%clk 0:02:55]} 2. Bf4 {[%clk 0:02:58]}  g6 {[%clk 0:02:55]} 3. Nc3 {[%clk 0:02:57]}  Bg7 {[%clk 0:02:56]} 4. e4 {[%clk 0:02:58]}  d6 {[%clk 0:02:56]} 5. Qd2 {[%clk 0:02:58]}  c5 {[%clk 0:02:57]} 6. dxc5 {[%clk 0:02:52]}  dxc5 {[%clk 0:02:50]} 7. Qxd8+ {[%clk 0:02:52]}  Kxd8 {[%clk 0:02:51]} 8. O-O-O+ {[%clk 0:02:52]}  Nfd7 {[%clk 0:02:52]} 9. Bc4 {[%clk 0:02:48]}  e6 {[%clk 0:02:45]} 10. Nb5 {[%clk 0:02:42]}  Na6 {[%clk 0:02:46]} 11. Nd6 {[%clk 0:02:42]}  Ke7 {[%clk 0:02:43]} 12. Bxa6 {[%clk 0:02:31]}  bxa6 {[%clk 0:02:44]} 13. Nf3 {[%clk 0:02:22]}  h6 {[%clk 0:02:31]} 14. h4 {[%clk 0:02:21]}  a5 {[%clk 0:02:24]} 15. Rhe1 {[%clk 0:02:20]}  Ba6 {[%clk 0:02:24]} 16. e5 {[%clk 0:02:19]}  Nb6 {[%clk 0:02:23]} 17. Ne4 {[%clk 0:02:07]}  Nd5 {[%clk 0:02:23]} 18. Bg3 {[%clk 0:01:55]}  Rhc8 {[%clk 0:02:18]} 19. Nfd2 {[%clk 0:01:44]}  c4 {[%clk 0:02:17]} 20. c3 {[%clk 0:01:42]}  a4 {[%clk 0:02:14]} 21. a3 {[%clk 0:01:41]}  Rab8 {[%clk 0:02:09]} 22. Nf1 {[%clk 0:01:35]}  Rb6 {[%clk 0:02:02]} 23. Ne3 {[%clk 0:01:34]}  Rcb8 {[%clk 0:01:56]} 24. Nxd5+ {[%clk 0:01:32]}  exd5 {[%clk 0:01:56]} 25. Rd2 {[%clk 0:01:33]}  dxe4 {[%clk 0:01:56]} 26. Rxe4 {[%clk 0:01:28]}  Rd8 {[%clk 0:01:55]} 27. f4 {[%clk 0:01:17]}  Rxd2 {[%clk 0:01:54]} 28. Kxd2 {[%clk 0:01:17]}  Rxb2+ {[%clk 0:01:55]} 29. Kc1 {[%clk 0:01:17]}  Rxg2 {[%clk 0:01:55]} 0-1


[Site "https://www.chess.com"]

[Event "Titled Tuesday Blitz February 22 Late 2022"]
[White "Villegas, Pierre"]
[Black "Tang, Andrew"]
[WhiteFideId "654183"]
[BlackFideId "2059630"]
[WhiteElo "2410"]
[BlackElo "2584"]
[Result "0-1"]
[Round "01"]
[TimeControl "180+1"]
[Date "2022.02.22"]
[WhiteClock "0:00:04"]
[BlackClock "0:00:07"]

1. d4 {[%clk 0:03:00]}  d5 {[%clk 0:02:59]} 2. c4 {[%clk 0:02:59]}  e6 {[%clk 0:02:59]} 3. Nc3 {[%clk 0:02:59]}  Be7 {[%clk 0:03:00]} 4. cxd5 {[%clk 0:02:58]}  exd5 {[%clk 0:03:01]} 5. Bf4 {[%clk 0:02:58]}  c6 {[%clk 0:03:01]} 6. e3 {[%clk 0:02:55]}  Bf5 {[%clk 0:03:00]} 7. h3 {[%clk 0:02:51]}  Qb6 {[%clk 0:02:43]} 8. Qd2 {[%clk 0:02:50]}  Nf6 {[%clk 0:02:38]} 9. f3 {[%clk 0:02:40]}  Nh5 {[%clk 0:02:03]} 10. g4 {[%clk 0:02:18]}  Nxf4 {[%clk 0:01:55]} 11. exf4 {[%clk 0:02:18]}  Bh4+ {[%clk 0:01:54]} 12. Kd1 {[%clk 0:02:15]}  Bc8 {[%clk 0:01:51]} 13. Rc1 {[%clk 0:02:10]}  O-O {[%clk 0:01:48]} 14. Kc2 {[%clk 0:02:04]}  Na6 {[%clk 0:01:12]} 15. Kb1 {[%clk 0:02:02]}  Re8 {[%clk 0:01:08]} 16. Bd3 {[%clk 0:01:56]}  Qd8 {[%clk 0:00:40]} 17. Rh2 {[%clk 0:01:40]}  Qd6 {[%clk 0:00:24]} 18. Re2 {[%clk 0:01:36]}  Bd7 {[%clk 0:00:23]} 19. Na4 {[%clk 0:01:15]}  Nb4 {[%clk 0:00:19]} 20. Nc5 {[%clk 0:01:06]}  Nxd3 {[%clk 0:00:14]} 21. Qxd3 {[%clk 0:01:07]}  b6 {[%clk 0:00:11]} 22. Nxd7 {[%clk 0:01:03]}  Qxd7 {[%clk 0:00:12]} 23. Rcc2 {[%clk 0:00:57]}  Bg3 {[%clk 0:00:11]} 24. f5 {[%clk 0:00:51]}  h6 {[%clk 0:00:11]} 25. Rxe8+ {[%clk 0:00:51]}  Rxe8 {[%clk 0:00:12]} 26. Re2 {[%clk 0:00:51]}  Bd6 {[%clk 0:00:11]} 27. Rxe8+ {[%clk 0:00:36]}  Qxe8 {[%clk 0:00:12]} 28. Qe2 {[%clk 0:00:36]}  Qd7 {[%clk 0:00:11]} 29. Qe3 {[%clk 0:00:37]}  c5 {[%clk 0:00:11]} 30. Ne2 {[%clk 0:00:34]}  Qb5 {[%clk 0:00:08]} 31. f6 {[%clk 0:00:18]}  gxf6 {[%clk 0:00:06]} 32. a3 {[%clk 0:00:16]}  Kg7 {[%clk 0:00:04]} 33. Nf4 {[%clk 0:00:09]}  Bxf4 {[%clk 0:00:04]} 34. Qxf4 {[%clk 0:00:10]}  Qd3+ {[%clk 0:00:05]} 35. Ka2 {[%clk 0:00:10]}  Qxd4 {[%clk 0:00:05]} 36. Qxd4 {[%clk 0:00:02]}  cxd4 {[%clk 0:00:06]} 37. Kb3 {[%clk 0:00:03]}  f5 {[%clk 0:00:06]} 38. f4 {[%clk 0:00:03]}  fxg4 {[%clk 0:00:07]} 39. hxg4 {[%clk 0:00:04]}  f5 {[%clk 0:00:07]} 0-1


[Site "https://www.chess.com"]

[Event "Titled Tuesday Blitz February 22 Late 2022"]
[White "Wieczorek, Oskar"]
[Black "Rangel, Daniel"]
[WhiteFideId "1133950"]
[BlackFideId "2124475"]
[WhiteElo "2319"]
[BlackElo "2187"]
[Result "1-0"]
[Round "01"]
[TimeControl "180+1"]
[Date "2022.02.23"]
[WhiteClock "0:00:43"]
[BlackClock "0:00:05"]

1. e4 {[%clk 0:03:00]}  c6 {[%clk 0:02:59]} 2. d4 {[%clk 0:03:01]}  d5 {[%clk 0:03:00]} 3. Nd2 {[%clk 0:03:01]}  dxe4 {[%clk 0:03:00]} 4. Nxe4 {[%clk 0:03:02]}  Nf6 {[%clk 0:03:00]} 5. Nxf6+ {[%clk 0:03:03]}  exf6 {[%clk 0:03:01]} 6. Be2 {[%clk 0:03:03]}  Bd6 {[%clk 0:03:02]} 7. Bf3 {[%clk 0:03:04]}  O-O {[%clk 0:03:02]} 8. Ne2 {[%clk 0:03:05]}  Re8 {[%clk 0:03:02]} 9. O-O {[%clk 0:03:05]}  Nd7 {[%clk 0:03:03]} 10. c4 {[%clk 0:03:06]}  Nf8 {[%clk 0:03:03]} 11. Be3 {[%clk 0:03:07]}  Ng6 {[%clk 0:03:02]} 12. c5 {[%clk 0:03:06]}  Bc7 {[%clk 0:03:01]} 13. d5 {[%clk 0:03:07]}  cxd5 {[%clk 0:03:01]} 14. Bxd5 {[%clk 0:03:08]}  Bg4 {[%clk 0:02:48]} 15. Re1 {[%clk 0:02:39]}  Qb8 {[%clk 0:02:25]} 16. h3 {[%clk 0:02:33]}  Bxe2 {[%clk 0:02:12]} 17. Rxe2 {[%clk 0:02:18]}  Be5 {[%clk 0:02:04]} 18. Qb3 {[%clk 0:02:16]}  b6 {[%clk 0:01:44]} 19. Bxf7+ {[%clk 0:02:11]}  Kh8 {[%clk 0:01:43]} 20. Bxe8 {[%clk 0:02:11]}  Qxe8 {[%clk 0:01:42]} 21. cxb6 {[%clk 0:02:10]}  axb6 {[%clk 0:01:42]} 22. Qxb6 {[%clk 0:02:07]}  Rb8 {[%clk 0:01:38]} 23. Qc5 {[%clk 0:02:01]}  Bxb2 {[%clk 0:01:32]} 24. Rb1 {[%clk 0:01:58]}  Be5 {[%clk 0:01:26]} 25. Rxb8 {[%clk 0:01:57]}  Bxb8 {[%clk 0:01:26]} 26. Bf4 {[%clk 0:01:39]}  Qd8 {[%clk 0:00:49]} 27. Rd2 {[%clk 0:01:27]}  Qe8 {[%clk 0:00:49]} 28. Bxb8 {[%clk 0:01:24]}  Qxb8 {[%clk 0:00:49]} 29. Qd6 {[%clk 0:01:17]}  Qb1+ {[%clk 0:00:46]} 30. Kh2 {[%clk 0:01:17]}  h6 {[%clk 0:00:43]} 31. a4 {[%clk 0:01:17]}  Ne5 {[%clk 0:00:35]} 32. a5 {[%clk 0:01:12]}  Qa1 {[%clk 0:00:31]} 33. a6 {[%clk 0:01:09]}  Qa4 {[%clk 0:00:32]} 34. Rd4 {[%clk 0:01:02]}  Qa2 {[%clk 0:00:30]} 35. Rf4 {[%clk 0:00:52]}  Ng6 {[%clk 0:00:27]} 36. Qd8+ {[%clk 0:00:49]}  Kh7 {[%clk 0:00:26]} 37. Qd3 {[%clk 0:00:49]}  h5 {[%clk 0:00:22]} 38. Rf5 {[%clk 0:00:43]}  Kh8 {[%clk 0:00:05]} 39. Rxh5+ {[%clk 0:00:42]}  Kg8 {[%clk 0:00:05]} 40. Qd5+ {[%clk 0:00:43]} 1-0


[Site "https://www.chess.com"]